fUSD/lending_fUSD_20240419
["ID","MTS","AMOUNT","RATE_DAILY","PERIOD"]
[322972960,1713550263861,-932.64,0.00016986,2]
[322972961,1713550263871,-421.572395,0.00016986,2]
[322972962,1713550263881,-1183.71,0.00016986,2]
[322972963,1713550263891,-151.0,0.00016986,2]
[322972964,1713550263901,-500.0,0.00016986,2]
[322972965,1713550263910,-500.0,0.00016986,2]
[322972966,1713550263921,-1284.0,0.00016986,2]
[322972967,1713550263930,-500.0,0.00016986,2]
[322972968,1713550263940,-421.572395,0.00016986,2]
[322972969,1713550263950,-598.0,0.00016986,2]
[322972970,1713550263960,-945.16,0.00016986,2]
[322972971,1713550263969,-533.75,0.00016986,2]
[322972972,1713550263980,-151.0,0.00016986,2]
[322972973,1713550263990,-500.0,0.00016986,2]
[322972974,1713550264000,-500.0,0.00016986,2]
[322972975,1713550264010,-550.25,0.00016986,2]
[322972976,1713550264019,-500.0,0.00016986,2]
[322972977,1713550264029,-500.0,0.00016986,2]
[322972978,1713550264039,-500.0,0.00016986,2]
[322972979,1713550264048,-555.27,0.00016986,2]
[322972980,1713550264058,-500.0,0.00016986,2]
[322972981,1713550264068,-500.0,0.00016986,2]
[322972982,1713550264077,-500.0,0.00016986,2]
[322972983,1713550264087,-500.0,0.00016986,2]
[322972984,1713550264097,-703.87,0.00016986,2]
[322972985,1713550264107,-801.49,0.00016986,2]
[322972986,1713550264117,-151.0,0.00016986,2]
[322972987,1713550264128,-994.14,0.00016986,2]
[322972988,1713550264138,-554.14,0.00016986,2]
[322972989,1713550264148,-955.89,0.00016986,2]
[322972990,1713550264158,-500.0,0.00016986,2]
[322972991,1713550264167,-500.0,0.00016986,2]
[322972992,1713550264177,-852.64,0.00016986,2]
[322972993,1713550264187,-510.94,0.00016986,2]
[322972994,1713550264201,-841.55,0.00016986,2]
[322972995,1713550264211,-500.0,0.00016986,2]
[322972996,1713550264221,-1892.65,0.00016986,2]
[322972997,1713550264233,-1107.6,0.00016986,2]
[322972998,1713550264243,-500.0,0.00016986,2]
[322972999,1713550264253,-500.0,0.00016986,2]
[322973000,1713550264264,-500.0,0.00016986,2]
[322973001,1713550264274,-798.01,0.00016986,2]
[322973002,1713550264284,-1004.83,0.00016986,2]
[322973003,1713550264294,-888.98,0.00016986,2]
[322973004,1713550264303,-1537.76,0.00016986,2]
[322973005,1713550264314,-500.0,0.00016986,2]
[322973006,1713550264324,-500.0,0.00016986,2]
[322973007,1713550264333,-500.0,0.00016986,2]
[322973008,1713550264342,-1698.41,0.00016986,2]
[322973009,1713550264351,-924.91,0.00016986,2]
[322973010,1713550264361,-749.46,0.00016986,2]
[322973011,1713550264371,-500.0,0.00016986,2]
[322973012,1713550264381,-551.44,0.00016986,2]
[322973013,1713550264391,-500.0,0.00016986,2]
[322973014,1713550264400,-500.0,0.00016986,2]
[322973015,1713550264410,-500.0,0.00016986,2]
[322973016,1713550264421,-942.85,0.00016986,2]
[322973017,1713550264432,-508.29,0.00016986,2]
[322973018,1713550264442,-1105.39,0.00016986,2]
[322973019,1713550264452,-500.0,0.00016986,2]
[322973020,1713550264462,-966.16,0.00016986,2]
[322973021,1713550264472,-500.0,0.00016986,2]
[322973022,1713550264483,-500.0,0.00016986,2]
[322973023,1713550264492,-922.95,0.00016986,2]
[322973024,1713550264502,-500.0,0.00016986,2]
[322973025,1713550264511,-500.0,0.00016986,2]
[322973026,1713550264521,-500.0,0.00016986,2]
[322973027,1713550264531,-500.0,0.00016986,2]
[322973028,1713550264541,-500.0,0.00016986,2]
[322973029,1713550264551,-694.65,0.00016986,2]
[322973030,1713550264560,-500.0,0.00016986,2]
[322973031,1713550264570,-500.0,0.00016986,2]
[322973032,1713550264580,-723.53,0.00016986,2]
[322973033,1713550264590,-538.41,0.00016986,2]
[322973034,1713550264599,-682.23,0.00016986,2]
[322973035,1713550264608,-1202.52,0.00016986,2]
[322973036,1713550264618,-884.55,0.00016986,2]
[322973037,1713550264628,-500.0,0.00016986,2]
[322973038,1713550264638,-500.0,0.00016986,2]
[322973039,1713550264647,-500.0,0.00016986,2]
[322973040,1713550264657,-1187.6,0.00016986,2]
[322973041,1713550264667,-500.0,0.00016986,2]
[322973042,1713550264677,-719.74,0.00016986,2]
[322973043,1713550264687,-756.1,0.00016986,2]
[322973044,1713550264697,-1424.62,0.00016986,2]
[322973045,1713550264707,-715.22,0.00016986,2]
[322973046,1713550264716,-500.0,0.00016986,2]
[322973047,1713550264726,-500.0,0.00016986,2]
[322973048,1713550264737,-1009.64,0.00016986,2]
[322973049,1713550264747,-691.01,0.00016986,2]
[322973050,1713550264757,-500.0,0.00016986,2]
[322973051,1713550264767,-500.0,0.00016986,2]
[322973052,1713550264776,-500.0,0.00016986,2]
[322973053,1713550264786,-500.0,0.00016986,2]
[322973054,1713550264795,-500.0,0.00016986,2]
[322973055,1713550264805,-500.0,0.00016986,2]
[322973056,1713550264815,-1053.92,0.00016986,2]
[322973057,1713550264824,-500.0,0.00016986,2]
[322973058,1713550264834,-656.46,0.00016986,2]
[322973059,1713550264844,-637.22,0.00016986,2]
[322973060,1713550264856,-1092.46,0.00016986,2]
[322973061,1713550264866,-500.0,0.00016986,2]
[322973062,1713550264876,-500.0,0.00016986,2]
[322973063,1713550264888,-500.0,0.00016986,2]
[322973064,1713550264898,-500.0,0.00016986,2]
[322973065,1713550264907,-785.68,0.00016986,2]
[322973066,1713550264918,-500.0,0.00016986,2]
[322973067,1713550264927,-500.0,0.00016986,2]
[322973068,1713550264937,-500.0,0.00016986,2]
[322973069,1713550264947,-500.0,0.00016986,2]
[322973070,1713550264960,-500.0,0.00016986,2]
[322973071,1713550264971,-500.0,0.00016986,2]
[322973072,1713550264983,-1098.28,0.00016986,2]
[322973073,1713550264993,-634.94,0.00016986,2]
[322973074,1713550265003,-771.55,0.00016986,2]
[322973075,1713550265014,-500.0,0.00016986,2]
[322973076,1713550265023,-500.0,0.00016986,2]
[322973077,1713550265033,-500.0,0.00016986,2]
[322973078,1713550265043,-500.0,0.00016986,2]
[322973079,1713550265054,-585.44,0.00016986,2]
[322973080,1713550265064,-2054.36,0.00016986,2]
[322973081,1713550265075,-594.46,0.00016986,2]
[322973082,1713550265085,-500.0,0.00016986,2]
[322973083,1713550265096,-544.46,0.00016986,2]
[322973084,1713550265106,-500.0,0.00016986,2]
[322973085,1713550265116,-1253.75,0.00016986,2]
[322973086,1713550265126,-500.0,0.00016986,2]
[322973087,1713550265136,-587.67,0.00016986,2]
[322973088,1713550265146,-500.0,0.00016986,2]
[322973089,1713550265156,-500.0,0.00016986,2]
[322973090,1713550265167,-500.0,0.00016986,2]
[322973091,1713550265178,-500.0,0.00016986,2]
[322973092,1713550265189,-2100.28,0.00016986,2]
[322973093,1713550265202,-683.03,0.00016986,2]
[322973094,1713550265212,-500.0,0.00016986,2]
[322973095,1713550265223,-1308.2,0.00016986,2]
[322973096,1713550265234,-500.0,0.00016986,2]
[322973097,1713550265246,-840.15,0.00016986,2]
[322973098,1713550265256,-500.0,0.00016986,2]
[322973099,1713550265266,-1027.08,0.00016986,2]
[322973100,1713550265276,-2360.98,0.00016986,2]
[322973101,1713550265286,-500.0,0.00016986,2]
[322973102,1713550265295,-590.86,0.00016986,2]
[322973103,1713550265305,-783.34,0.00016986,2]
[322973104,1713550265315,-500.0,0.00016986,2]
[322973105,1713550265325,-500.0,0.00016986,2]
[322973106,1713550265335,-772.28,0.00016986,2]
[322973107,1713550265346,-877.35,0.00016986,2]
[322973108,1713550265356,-500.0,0.00016986,2]
[322973109,1713550265367,-500.0,0.00016986,2]
[322973110,1713550265377,-500.0,0.00016986,2]
[322973111,1713550265387,-507.26,0.00016986,2]
[322973112,1713550265396,-500.0,0.00016986,2]
[322973113,1713550265407,-2010.23,0.00016986,2]
[322973114,1713550265416,-806.7,0.00016986,2]
[322973115,1713550265426,-500.0,0.00016986,2]
[322973116,1713550265435,-903.57,0.00016986,2]
[322973117,1713550265445,-500.0,0.00016986,2]
[322973118,1713550265456,-500.0,0.00016986,2]
[322973119,1713550265466,-540.24,0.00016986,2]
[322973120,1713550265477,-500.0,0.00016986,2]
[322973121,1713550265767,-500.0,0.00016986,2]
[322973122,1713550265823,-500.0,0.00016986,2]
[322973123,1713550265834,-500.0,0.00016986,2]
[322973124,1713550265845,-500.0,0.00016986,2]
[322973125,1713550265855,-1345.99,0.00016986,2]
[322973126,1713550265866,-711.4,0.00016986,2]
[322973127,1713550265877,-952.32,0.00016986,2]
[322973128,1713550265887,-500.0,0.00016986,2]
[322973129,1713550265897,-2599.59,0.00016986,2]
[322973130,1713550265908,-500.0,0.00016986,2]
[322973131,1713550265921,-794.17,0.00016986,2]
[322973132,1713550265932,-500.0,0.00016986,2]
[322973133,1713550265942,-500.0,0.00016986,2]
[322973134,1713550265952,-722.17,0.00016986,2]
[322973135,1713550265963,-500.0,0.00016986,2]
[322973136,1713550265974,-618.03,0.00016986,2]
[322973137,1713550265987,-500.0,0.00016986,2]
[322973138,1713550265997,-500.0,0.00016986,2]
[322973139,1713550266007,-500.0,0.00016986,2]
[322973140,1713550266019,-500.0,0.00016986,2]
[322973141,1713550266030,-500.0,0.00016986,2]
[322973142,1713550266041,-534.09,0.00016986,2]
[322973143,1713550266052,-957.91,0.00016986,2]
[322973144,1713550266063,-500.0,0.00016986,2]
[322973145,1713550266074,-986.67,0.00016986,2]
[322973146,1713550266085,-1071.15,0.00016986,2]
[322973147,1713550266096,-1007.79,0.00016986,2]
[322973148,1713550266106,-500.0,0.00016986,2]
[322973149,1713550266116,-1285.14,0.00016986,2]
[322973150,1713550266126,-500.0,0.00016986,2]
[322973151,1713550266137,-962.42,0.00016986,2]
[322973152,1713550266147,-844.52,0.00016986,2]
[322973153,1713550266158,-758.78,0.00016986,2]
[322973154,1713550266169,-833.9,0.00016986,2]
[322973155,1713550266179,-500.0,0.00016986,2]
[322973156,1713550266191,-1615.14,0.00016986,2]
[322973157,1713550266206,-500.0,0.00016986,2]
[322973158,1713550266217,-920.81,0.00016986,2]
[322973159,1713550266228,-1315.55,0.00016986,2]
[322973160,1713550266241,-547.44,0.00016986,2]
[322973161,1713550266251,-964.74,0.00016986,2]
[322973162,1713550266262,-500.0,0.00016986,2]
[322973163,1713550266275,-500.0,0.00016986,2]
[322973164,1713550266285,-972.03,0.00016986,2]
[322973165,1713550266295,-619.56,0.00016986,2]
[322973166,1713550266305,-500.0,0.00016986,2]
[322973167,1713550266316,-500.0,0.00016986,2]
[322973168,1713550266327,-408.89944757,0.00016986,2]
[322973169,1713550266339,-500.0,0.00016986,2]
[322973170,1713550266350,-772.39,0.00016986,2]
[322973171,1713550266360,-500.0,0.00016986,2]
[322973172,1713550266371,-1525.67,0.00016986,2]
[322973173,1713550266382,-500.0,0.00016986,2]
[322973174,1713550266392,-500.0,0.00016986,2]
[322973175,1713550266403,-996.21,0.00016986,2]
[322973176,1713550266414,-579.5,0.00016986,2]
[322973177,1713550266427,-611.59,0.00016986,2]
[322973178,1713550266438,-500.0,0.00016986,2]
[322973179,1713550266449,-500.0,0.00016986,2]
[322973180,1713550266459,-603.20812068,0.00016986,2]
[322973181,1713550266469,-500.0,0.00016986,2]
[322973182,1713550266479,-500.0,0.00016986,2]
[322973183,1713550266490,-539.14166534,0.00016986,2]
[322973184,1713550266500,-500.0,0.00016986,2]
[322973185,1713550266510,-500.0,0.00016986,2]
[322973186,1713550266521,-500.0,0.00016986,2]
[322973187,1713550266532,-531.29,0.00016986,2]
[322973188,1713550266543,-500.0,0.00016986,2]
[322973189,1713550266555,-500.0,0.00016986,2]
[322973190,1713550266566,-500.0,0.00016986,2]
[322973191,1713550266577,-500.0,0.00016986,2]
[322973192,1713550266588,-1954.01,0.00016986,2]
[322973193,1713550266603,-658.28,0.00016986,2]
[322973194,1713550266622,-500.0,0.00016986,2]
[322973195,1713550266632,-500.0,0.00016986,2]
[322973196,1713550266642,-1518.32,0.00016986,2]
[322973197,1713550266652,-500.0,0.00016986,2]
[322973198,1713550266663,-1048.18,0.00016986,2]
[322973199,1713550266672,-500.0,0.00016986,2]
[322973200,1713550266683,-577.02957829,0.00016986,2]
[322973201,1713550266694,-511.04,0.00016986,2]
[322973202,1713550266704,-500.0,0.00016986,2]
[322973203,1713550266713,-500.0,0.00016986,2]
[322973204,1713550266723,-514.86,0.00016986,2]
[322973205,1713550266735,-770.24,0.00016986,2]
[322973206,1713550266745,-768.73,0.00016986,2]
[322973207,1713550266756,-2185.37,0.00016986,2]
[322973208,1713550266767,-654.31,0.00016986,2]
[322973209,1713550266777,-2646.29,0.00016986,2]
[322973210,1713550266788,-1401.76,0.00016986,2]
[322973211,1713550266799,-760.19,0.00016986,2]
[322973212,1713550266810,-500.0,0.00016986,2]
[322973213,1713550266820,-500.0,0.00016986,2]
[322973214,1713550266830,-500.0,0.00016986,2]
[322973215,1713550266840,-520.18,0.00016986,2]
[322973216,1713550266850,-500.0,0.00016986,2]
[322973217,1713550266860,-1041.49,0.00016986,2]
[322973218,1713550266870,-500.0,0.00016986,2]
[322973219,1713550266881,-1569.79,0.00016986,2]
[322973220,1713550266890,-500.0,0.00016986,2]
[322973221,1713550266901,-500.0,0.00016986,2]
[322973222,1713550266911,-745.4,0.00016986,2]
[322973223,1713550266921,-1023.62,0.00016986,2]
[322973224,1713550266931,-572.29,0.00016986,2]
[322973225,1713550266942,-734.01,0.00016986,2]
[322973226,1713550266953,-500.0,0.00016986,2]
[322973227,1713550266962,-602.42,0.00016986,2]
[322973228,1713550266972,-2446.96,0.00016986,2]
[322973229,1713550266982,-500.0,0.00016986,2]
[322973230,1713550266992,-500.0,0.00016986,2]
[322973231,1713550267001,-737.58,0.00016986,2]
[322973232,1713550267011,-632.05,0.00016986,2]
[322973233,1713550267021,-500.0,0.00016986,2]
[322973234,1713550267030,-500.0,0.00016986,2]
[322973235,1713550267040,-1084.65,0.00016986,2]
[322973236,1713550267052,-570.30043189,0.00016986,2]
[322973237,1713550267062,-500.0,0.00016986,2]
[322973238,1713550267072,-868.78,0.00016986,2]
[322973239,1713550267082,-500.0,0.00016986,2]
[322973240,1713550267092,-150.0,0.00016986,2]
[322973241,1713550267103,-500.0,0.00016986,2]
[322973242,1713550267113,-500.0,0.00016986,2]
[322973243,1713550267123,-2149.31,0.00016986,2]
[322973244,1713550267133,-810.62,0.00016986,2]
[322973245,1713550267143,-500.0,0.00016986,2]
[322973246,1713550267153,-500.0,0.00016986,2]
[322973247,1713550267164,-1320.23,0.00016986,2]
[322973248,1713550267174,-500.0,0.00016986,2]
[322973249,1713550267184,-500.0,0.00016986,2]
[322973250,1713550267196,-500.0,0.00016986,2]
[322973251,1713550267208,-555.55,0.00016986,2]
[322973252,1713550267218,-779.04,0.00016986,2]
[322973253,1713550267228,-515.7,0.00016986,2]
[322973254,1713550267240,-2723.87,0.00016986,2]
[322973255,1713550267251,-923.49,0.00016986,2]
[322973256,1713550267261,-1238.11,0.00016986,2]
[322973257,1713550267271,-500.0,0.00016986,2]
[322973258,1713550267282,-675.9,0.00016986,2]
[322973259,1713550267294,-500.0,0.00016986,2]
[322973260,1713550267305,-1208.89,0.00016986,2]
[322973261,1713550267315,-500.0,0.00016986,2]
[322973262,1713550267326,-500.0,0.00016986,2]
[322973263,1713550267336,-1568.36,0.00016986,2]
[322973264,1713550267347,-834.91,0.00016986,2]
[322973265,1713550267358,-500.0,0.00016986,2]
[322973266,1713550267369,-627.3098619,0.00016986,2]
[322973267,1713550267379,-500.0,0.00016986,2]
[322973268,1713550267389,-500.0,0.00016986,2]
[322973269,1713550267399,-500.0,0.00016986,2]
[322973270,1713550267409,-500.0,0.00016986,2]
[322973271,1713550267418,-594.47,0.00016986,2]
[322973272,1713550267428,-2192.7,0.00016986,2]
[322973273,1713550267437,-500.0,0.00016986,2]
[322973274,1713550267447,-1031.65,0.00016986,2]
[322973275,1713550267457,-500.0,0.00016986,2]
[322973276,1713550267466,-500.0,0.00016986,2]
[322973277,1713550267476,-500.0,0.00016986,2]
[322973278,1713550267487,-708.17,0.00016986,2]
[322973279,1713550267497,-750.6,0.00016986,2]
[322973280,1713550267507,-999.68,0.00016986,2]
[322973281,1713550267517,-690.66,0.00016986,2]
[322973282,1713550267526,-500.0,0.00016986,2]
[322973283,1713550267535,-769.32,0.00016986,2]
[322973284,1713550267545,-2098.81,0.00016986,2]
[322973285,1713550267555,-500.0,0.00016986,2]
[322973286,1713550267565,-1810.63,0.00016986,2]
[322973287,1713550267575,-500.0,0.00016986,2]
[322973288,1713550267584,-739.95,0.00016986,2]
[322973289,1713550267594,-500.0,0.00016986,2]
[322973290,1713550267604,-523.79,0.00016986,2]
[322973291,1713550267614,-807.56,0.00016986,2]
[322973292,1713550267624,-959.33,0.00016986,2]
[322973293,1713550267633,-500.0,0.00016986,2]
[322973294,1713550267642,-886.7,0.00016986,2]
[322973295,1713550267652,-500.0,0.00016986,2]
[322973296,1713550267662,-500.0,0.00016986,2]
[322973297,1713550267673,-904.99,0.00016986,2]
[322973298,1713550267682,-500.0,0.00016986,2]
[322973299,1713550267692,-500.0,0.00016986,2]
[322973300,1713550267702,-611.99,0.00016986,2]
[322973301,1713550267712,-1811.92,0.00016986,2]
[322973302,1713550267721,-734.86,0.00016986,2]
[322973303,1713550267733,-531.95,0.00016986,2]
[322973304,1713550267743,-500.0,0.00016986,2]
[322973305,1713550267753,-500.0,0.00016986,2]
[322973306,1713550267762,-1462.76,0.00016986,2]
[322973307,1713550267771,-500.0,0.00016986,2]
[322973308,1713550267781,-870.84,0.00016986,2]
[322973309,1713550267791,-756.51,0.00016986,2]
[322973310,1713550267801,-500.0,0.00016986,2]
[322973311,1713550267811,-556.84,0.00016986,2]
[322973312,1713550267820,-550.83,0.00016986,2]
[322973313,1713550267830,-500.0,0.00016986,2]
[322973314,1713550267840,-500.0,0.00016986,2]
[322973315,1713550267850,-763.21,0.00016986,2]
[322973316,1713550267860,-500.0,0.00016986,2]
[322973317,1713550267870,-500.0,0.00016986,2]
[322973318,1713550267879,-1949.05,0.00016986,2]
[322973319,1713550267889,-2310.93,0.00016986,2]
[322973320,1713550267899,-693.55,0.00016986,2]
[322973321,1713550267908,-500.0,0.00016986,2]
[322973322,1713550267917,-3279.49,0.00016986,2]
[322973323,1713550267927,-500.0,0.00016986,2]
[322973324,1713550267936,-1279.96,0.00016986,2]
[322973325,1713550267945,-500.0,0.00016986,2]
[322973326,1713550267955,-500.0,0.00016986,2]
[322973327,1713550267965,-10148.51,0.00016986,2]
[322973328,1713550267974,-500.0,0.00016986,2]
[322973329,1713550267986,-1245.05,0.00016986,2]
[322973330,1713550267996,-504.45,0.00016986,2]
[322973331,1713550268006,-631.16,0.00016986,2]
[322973332,1713550268016,-500.0,0.00016986,2]
[322973333,1713550268026,-2432.79,0.00016986,2]
[322973334,1713550268035,-500.0,0.00016986,2]
[322973335,1713550268045,-709.19,0.00016986,2]
[322973336,1713550268056,-500.0,0.00016986,2]
[322973337,1713550268065,-500.0,0.00016986,2]
[322973338,1713550268075,-12548.21,0.00016986,2]
[322973339,1713550268085,-291.6648615,0.00016986,2]
[322973340,1713550268094,-2019.79,0.00016986,2]
[322973341,1713550268103,-4021.15,0.00016986,2]
[322973342,1713550268113,-500.0,0.00016986,2]
[322973343,1713550268122,-500.0,0.00016986,2]
[322973344,1713550268132,-4788.06,0.00016986,2]
[322973345,1713550268141,-620.71,0.00016986,2]
[322973346,1713550268151,-712.22,0.00016986,2]
[322973347,1713550268160,-763.52,0.00016986,2]
[322973348,1713550268170,-1962.6,0.00016986,2]
[322973349,1713550268180,-602.84615847,0.00016986,2]
[322973350,1713550268192,-612.79,0.00016986,2]
[322973351,1713550268201,-3436.05,0.00016986,2]
[322973352,1713550268211,-500.0,0.00016986,2]
[322973353,1713550268220,-955.8,0.00016986,2]
[322973354,1713550268230,-500.0,0.00016986,2]
[322973355,1713550268242,-1158.7,0.00016986,2]
[322973356,1713550268252,-1982.57,0.00016986,2]
[322973357,1713550268262,-1405.49,0.00016986,2]
[322973358,1713550268274,-500.0,0.00016986,2]
[322973359,1713550268284,-500.0,0.00016986,2]
[322973360,1713550268293,-500.0,0.00016986,2]
[322973361,1713550268302,-1522.02,0.00016986,2]
[322973362,1713550268311,-2447.66,0.00016986,2]
[322973363,1713550268321,-345.18453064,0.00016986,2]
[322973364,1713550268334,-1289.86,0.00016986,2]
[322973365,1713550268343,-31723.29,0.00016986,2]
[322973366,1713550268353,-2053.91235691,0.00016986,2]
[322973367,1713550269102,-1214.76272074,0.00016986,2]
[322973368,1713550269118,-12.46492235,0.00016986,2]
[322973369,1713550269131,-500.0,0.00016986,2]
[322973370,1713550269144,-500.0,0.00016986,2]
[322973371,1713550269158,-500.0,0.00016986,2]
[322973372,1713550269170,-500.0,0.00016986,2]
[322973373,1713550269184,-541.98,0.00016986,2]
[322973374,1713550269198,-500.0,0.00016986,2]
[322973375,1713550269212,-500.0,0.00016986,2]
[322973376,1713550269225,-4768.4,0.00016986,2]
[322973377,1713550269238,-500.0,0.00016986,2]
[322973378,1713550269252,-2704.58,0.00016986,2]
[322973379,1713550269266,-3050.03,0.00016986,2]
[322973380,1713550269280,-895.96,0.00016986,2]
[322973381,1713550269295,-1276.09,0.00016986,2]
[322973382,1713550269305,-1864.71895816,0.00016986,2]
[322973383,1713550269321,-647.05,0.00016986,2]
[322973384,1713550269338,-2863.68991214,0.00016986,2]
[322973385,1713550270666,-287.14459637,0.000129,2]
[322973386,1713550270678,-500.0,0.00016438,2]
[322973387,1713550270689,-500.0,0.00016438,2]
[322973388,1713550270700,-2693.41,0.00016438,2]
[322973389,1713550270711,-500.0,0.00016438,2]
[322973390,1713550270722,-500.0,0.00016438,2]
[322973391,1713550270734,-524.02,0.00016438,2]
[322973392,1713550270746,-500.0,0.00016712,2]
[322973393,1713550270757,-500.0,0.00016712,2]
[322973394,1713550270768,-2693.41,0.00016712,2]
[322973395,1713550270779,-229.51,0.00016712,2]
[322973396,1713550270790,-216.07626963,0.00016712,2]
[322973397,1713550270810,-219.00373037,0.00016712,2]
[322973398,1713550270821,-484.85079368,0.0001684,2]
[322973399,1713550270832,-847.12020658,0.00016986,2]
[322973400,1713550270846,-537.16417105,0.00016986,2]
[322973401,1713550270859,-467.04565678,0.00016986,2]
[322973402,1713550270872,-1034.06392184,0.00016986,2]
[322973403,1713550270920,-151.0,0.000169,2]
[322973404,1713550270932,-20939.20717345,0.00016986,2]
[322973405,1713550270944,-2080.16,0.00016986,2]
[322973406,1713550270955,-500.0,0.00016986,2]
[322973407,1713550270967,-2641.88,0.00016986,2]
[322973408,1713550270978,-890.03,0.00016986,2]
[322973409,1713550270992,-500.0,0.00016986,2]
[322973410,1713550271002,-500.0,0.00016986,2]
[322973411,1713550271013,-1630.17,0.00016986,2]
[322973412,1713550271024,-500.0,0.00016986,2]
[322973413,1713550271036,-698.87,0.00016986,2]
[322973414,1713550271048,-500.0,0.00016986,2]
[322973415,1713550271061,-2038.63,0.00016986,2]
[322973416,1713550271073,-2024.21,0.00016986,2]
[322973417,1713550271084,-2835.42,0.00016986,2]
[322973418,1713550271095,-1254.65,0.00016986,2]
[322973419,1713550271105,-650.6,0.00016986,2]
[322973420,1713550271116,-533.49694682,0.00016986,2]
[322973421,1713550271130,-1063.90305318,0.00016986,2]
[322973422,1713550271141,-1787.25,0.00016986,2]
[322973423,1713550271152,-500.0,0.00016986,2]
[322973424,1713550271163,-1092.26,0.00016986,2]
[322973425,1713550271174,-1938.92,0.00016986,2]
[322973426,1713550271185,-1327.63,0.00016986,2]
[322973427,1713550271200,-751.58,0.00016986,2]
[322973428,1713550271212,-500.0,0.00016986,2]
[322973429,1713550271223,-500.0,0.00016986,2]
[322973430,1713550271236,-3205.55,0.00016986,2]
[322973431,1713550271247,-500.0,0.00016986,2]
[322973432,1713550271258,-2628.21,0.00016986,2]
[322973433,1713550271269,-2125.19,0.00016986,2]
[322973434,1713550271282,-885.19,0.00016986,2]
[322973435,1713550271292,-500.0,0.00016986,2]
[322973436,1713550271303,-7292.45,0.00016986,2]
[322973437,1713550271314,-4113.89,0.00016986,2]
[322973438,1713550271325,-500.0,0.00016986,2]
[322973439,1713550271336,-638.4672945,0.00016986,2]
[322973440,1713550271348,-500.0,0.00016986,2]
[322973441,1713550271360,-1539.43,0.00016986,2]
[322973442,1713550271371,-2233.23,0.00016986,2]
[322973443,1713550271382,-6198.87,0.00016986,2]
[322973444,1713550271393,-500.0,0.00016986,2]
[322973445,1713550271403,-945.43,0.00016986,2]
[322973446,1713550271414,-1587.36,0.00016986,2]
[322973447,1713550271425,-151.0,0.00016986,2]
[322973448,1713550271436,-500.0,0.00016986,2]
[322973449,1713550271446,-3172.86,0.00016986,2]
[322973450,1713550271457,-500.0,0.00016986,2]
[322973451,1713550271468,-500.0,0.00016986,2]
[322973452,1713550271479,-500.0,0.00016986,2]
[322973453,1713550271490,-4037.13,0.00016986,2]
[322973454,1713550271501,-500.0,0.00016986,2]
[322973455,1713550271512,-579.03,0.00016986,2]
[322973456,1713550271523,-500.0,0.00016986,2]
[322973457,1713550271534,-7917.35,0.00016986,2]
[322973458,1713550271546,-674.06,0.00016986,2]
[322973459,1713550271557,-3113.6,0.00016986,2]